fUSD/lending_fUSD_20260121
["ID","MTS","AMOUNT","RATE_DAILY","PERIOD"]
[402942493,1769001987224,-500.0,0.00053389,120]
[402942494,1769001987305,-500.0,0.00053389,120]
[402942495,1769001987388,-500.0,0.00053389,120]
[402942496,1769001987485,-500.0,0.00053389,120]
[402942497,1769001987571,-500.0,0.00053389,120]
[402942498,1769001987654,-500.0,0.00053389,120]
[402942499,1769001987739,-500.0,0.00053389,120]
[402942500,1769001987819,-500.0,0.00053389,120]
[402942501,1769001987904,-500.0,0.00053389,120]
[402942502,1769001987988,-631.0,0.00053389,120]
[402942503,1769001988069,-150.0,0.00053389,120]
[402942504,1769001988152,-150.0,0.00053389,120]
[402942505,1769001988237,-235.36099547,0.00053389,120]
[402942506,1769001988316,-500.0,0.00053389,120]
[402942507,1769001988401,-500.0,0.00053389,120]
[402942508,1769001988489,-505.87876924,0.00053389,120]
[402942509,1769001988574,-500.0,0.00053389,120]
[402942510,1769001988657,-150.0,0.00053389,120]
[402942511,1769001988742,-159.3784323,0.00053389,120]
[402942512,1769001988826,-500.0,0.00053389,120]
[402942513,1769001988909,-500.0,0.00053389,120]
[402942514,1769001988991,-500.0,0.00053389,120]
[402942515,1769001989076,-422.78307317,0.00053389,120]
[402942516,1769001989159,-2263120.41972413,0.0005339,120]
[402942517,1769001989240,-5695320.41959393,0.0005339,120]
[402942518,1769002005624,177.78377636,0.00016369,2]
[402942519,1769002006571,9100.64208075,0.0001637,2]
[402942520,1769002006597,10000.01,0.0001637,2]
[402942521,1769002006624,10000.01,0.0001637,2]
[402942522,1769002006653,10000.01,0.0001637,2]
[402942523,1769002006683,10000.01,0.0001637,2]
[402942524,1769002006709,10000.01,0.0001637,2]
[402942525,1769002006736,10000.01,0.0001637,2]
[402942526,1769002006762,10000.01,0.0001637,2]
[402942527,1769002006789,10000.01,0.0001637,2]
[402942528,1769002006816,10000.01,0.0001637,2]
[402942529,1769002006844,900899.26791925,0.0001637,2]
[402942531,1769002085273,3728.97322002,0.0001439,2]
[402942532,1769002088350,307.49764327,0.000125,2]
[402942533,1769002110012,268.30372918,0.000107,2]
[402942534,1769002110678,-189.22159731,0.00016468,2]
[402942535,1769002113310,-110.77840269,0.00016468,2]
[402942536,1769002113334,-189.22159731,0.00016469,2]
[402942537,1769002116333,9424.20862755,0.00016,4]
[402942538,1769002116357,10000.01,0.00016,4]
[402942539,1769002116381,10000.01,0.00016,4]
[402942540,1769002116403,1746.80124966,0.00016,4]
[402942541,1769002116908,8253.20875034,0.0001,2]
[402942542,1769002116930,3783.324843,0.0001,2]
[402942543,1769002118762,165.0,0.00018,30]
[402942544,1769002118994,164.0,0.00018,30]
[402942546,1769002156872,6216.685157,0.0001637,2]
[402942547,1769002156899,10000.01,0.0001637,2]
[402942548,1769002156925,10000.01,0.0001637,2]
[402942549,1769002156952,10000.01,0.0001637,2]
[402942550,1769002156978,10000.01,0.0001637,2]
[402942551,1769002157003,10000.01,0.0001637,2]
[402942552,1769002157028,10000.01,0.0001637,2]
[402942553,1769002157053,10000.01,0.0001637,2]
[402942554,1769002157077,10000.01,0.0001637,2]
[402942555,1769002157103,10000.01,0.0001637,2]
[402942556,1769002157128,903783.224843,0.0001637,2]
[402942557,1769002168938,166.66,0.00015352,2]
[402942558,1769002169382,166.66,0.00015675,2]
[402942559,1769002169574,166.66,0.00015998,2]
[402942560,1769002169804,166.66,0.00016321,2]
[402942561,1769002205802,-247.85664288,0.00016468,2]
[402942562,1769002209108,-326.90132893,0.00016468,2]
[402942563,1769002213322,-207.16504362,0.00016468,2]
[402942564,1769002215378,-173.75642742,0.00016468,2]
[402942565,1769002218600,-208.74440286,0.00016468,2]
[402942566,1769002221840,-35.57615429,0.00016468,2]
[402942567,1769002221862,-250.0,0.00016468,2]
[402942568,1769002221883,-38.88394985,0.00016468,2]
[402942581,1769002231468,-261.11605015,0.00016468,2]
[402942583,1769002231478,-300.0,0.00016468,2]
[402942586,1769002231488,-2263.7145609,0.00016469,2]
[402942588,1769002231500,-514.0,0.00016469,2]
[402942589,1769002231509,-250.0,0.00016469,2]
[402942591,1769002231520,-120.88585239,0.0001647,2]
[402942592,1769002231529,-500.0,0.0001647,2]
[402942594,1769002231542,-500.0,0.0001647,2]
[402942595,1769002231551,-500.0,0.0001647,2]
[402942596,1769002231559,-500.0,0.0001647,2]
[402942597,1769002231569,-500.0,0.0001647,2]
[402942598,1769002231578,-500.0,0.0001647,2]
[402942599,1769002231587,-500.0,0.0001647,2]
[402942600,1769002231597,-500.0,0.0001647,2]
[402942601,1769002231605,-500.0,0.0001647,2]
[402942602,1769002231615,-500.0,0.0001647,2]
[402942603,1769002231624,-100.85483029,0.0001647,2]
[402942604,1769002231650,-399.14516971,0.0001647,2]
[402942605,1769002231660,-500.0,0.0001647,2]
[402942606,1769002231669,-500.0,0.0001647,2]
[402942607,1769002231678,-500.0,0.0001647,2]
[402942608,1769002231688,-500.0,0.0001647,2]
[402942609,1769002231697,-500.0,0.0001647,2]
[402942610,1769002231707,-500.0,0.0001647,2]
[402942611,1769002231716,-500.0,0.0001647,2]
[402942612,1769002231725,-500.0,0.0001647,2]
[402942613,1769002231735,-500.0,0.0001647,2]
[402942614,1769002231745,-500.0,0.0001647,2]
[402942615,1769002231754,-435.22552045,0.0001647,2]
[402942616,1769002231766,-64.77447955,0.0001647,2]
[402942617,1769002231775,-500.0,0.0001647,2]
[402942618,1769002231785,-1000.0,0.0001647,2]
[402942619,1769002231794,-637.82,0.0001647,2]
[402942620,1769002231804,-1364.817,0.0001647,2]
[402942621,1769002231813,-168.944,0.0001647,2]
[402942622,1769002231823,-168.4208252,0.0001647,2]
[402942623,1769002231832,-250.0,0.00016505,2]
[402942624,1769002231842,-4474.0074,0.00016548,2]
[402942625,1769002231852,-151.0,0.00016557,2]
[402942626,1769002231861,-500.0,0.00016566,2]
[402942627,1769002231870,-500.0,0.00016566,2]
[402942628,1769002231880,-500.0,0.00016566,2]
[402942629,1769002231890,-500.0,0.00016569,2]
[402942630,1769002231899,-286.46340008,0.00016569,2]
[402942631,1769002231908,-200.52438005,0.00016569,2]
[402942632,1769002231918,-295.43737505,0.00016569,2]
[402942633,1769002231927,-206.80616253,0.00016569,2]
[402942634,1769002231936,-500.0,0.00016569,2]
[402942635,1769002231945,-500.0,0.00016569,2]
[402942636,1769002231954,-500.0,0.00016569,2]
[402942637,1769002231963,-500.0,0.00016569,2]
[402942638,1769002231972,-500.0,0.00016569,2]
[402942639,1769002231982,-500.0,0.00016569,2]
[402942641,1769002231991,-500.0,0.00016569,2]
[402942643,1769002232000,-500.0,0.00016569,2]
[402942644,1769002232009,-500.0,0.00016569,2]
[402942646,1769002232018,-500.0,0.00016569,2]
[402942648,1769002232027,-500.0,0.00016569,2]
[402942650,1769002232037,-500.0,0.00016569,2]
[402942652,1769002232047,-500.0,0.00016569,2]
[402942654,1769002232056,-500.0,0.00016569,2]
[402942656,1769002232065,-500.0,0.00016569,2]
[402942658,1769002232074,-500.0,0.00016569,2]
[402942660,1769002232083,-544.59749833,0.00016569,2]
[402942662,1769002232094,-51.29617421,0.00016569,2]
[402942667,1769002232130,-448.70382579,0.00016569,2]
[402942669,1769002232139,-487.18782857,0.00016569,2]
[402942671,1769002232149,-500.0,0.00016569,2]
[402942673,1769002232158,-500.0,0.00016569,2]
[402942675,1769002232167,-500.0,0.00016569,2]
[402942677,1769002232176,-500.0,0.0001657,2]
[402942679,1769002232185,-499.6214,0.0001657,2]
[402942681,1769002232195,-150.00710233,0.0001663,2]
[402942683,1769002232204,-166.66,0.00016645,2]
[402942685,1769002232213,-500.0,0.00016669,2]
[402942687,1769002232222,-500.0,0.00016669,2]
[402942689,1769002232231,-359.98096521,0.00016669,2]
[402942691,1769002232240,-500.0,0.00016669,2]
[402942693,1769002232249,-485.15972299,0.00016669,2]
[402942695,1769002232260,-166.52,0.00016712,2]
[402942697,1769002232269,-637.82,0.00016744,2]
[402942699,1769002232278,-1229.98,0.00016745,2]
[402942701,1769002232288,-200.0,0.00016746,2]
[402942703,1769002232296,-500.0,0.00016772,2]
[402942705,1769002232305,-500.0,0.00016772,2]
[402942707,1769002232314,-500.0,0.00016772,2]
[402942709,1769002232323,-500.0,0.00016772,2]
[402942711,1769002232333,-500.0,0.00016772,2]
[402942713,1769002232343,-500.0,0.00016772,2]
[402942715,1769002232353,-500.0,0.00016772,2]
[402942717,1769002232361,-500.0,0.00016772,2]
[402942719,1769002232370,-500.0,0.00016772,2]
[402942721,1769002232379,-500.0,0.00016772,2]
[402942723,1769002232387,-500.0,0.00016772,2]
[402942725,1769002232396,-265.57884344,0.00016772,2]
[402942727,1769002232404,-500.0,0.00016772,2]
[402942729,1769002232413,-500.0,0.00016772,2]
[402942731,1769002232425,-500.0,0.00016772,2]
[402942733,1769002232435,-175.58159846,0.00016773,2]
[402942735,1769002232445,-173.35264112,0.00016773,2]
[402942737,1769002232454,-237.49389678,0.00016773,2]
[402942739,1769002232466,-263.72535644,0.00016773,2]
[402942741,1769002232476,-170.10703562,0.00016773,2]
[402942743,1769002232485,-173.55705579,0.00016773,2]
[402942745,1769002232495,-501.12504577,0.00016773,2]
[402942747,1769002232504,-225.1354509,0.00016773,2]
[402942749,1769002232513,-500.82647846,0.00016773,2]
[402942751,1769002232522,-177.45121096,0.00016773,2]
[402942753,1769002232531,-500.6119985,0.00016773,2]
[402942756,1769002232541,-418.27999512,0.00016773,2]
[402942784,1769002232941,-82.42404301,0.00016773,2]
[402942785,1769002232950,-164.44455647,0.00016773,2]
[402942786,1769002232960,-500.59297437,0.00016773,2]
[402942787,1769002232969,-7.20475428,0.00016773,2]
[402942788,1769002232980,-493.39596762,0.00016773,2]
[402942789,1769002232990,-438.9230836,0.00016773,2]
[402942790,1769002233002,-61.0769164,0.00016773,2]
[402942792,1769002233011,-339.92308359,0.00016773,2]
[402942795,1769002233027,-161.81397148,0.00016773,2]
[402942797,1769002233037,-243.23602852,0.00016773,2]
[402942799,1769002233048,-256.76397148,0.00016773,2]
[402942801,1769002233057,-500.0,0.00016773,2]
[402942803,1769002233067,-166.23513753,0.00016773,2]
[402942805,1769002233077,-581.80673396,0.00016773,2]
[402942807,1769002233087,-222.59778062,0.00016773,2]
[402942812,1769002237588,-279.18333591,0.00016773,2]
[402942813,1769002237598,-500.94467747,0.00016773,2]
[402942814,1769002237607,-167.87587796,0.00016773,2]
[402942815,1769002237616,-500.0,0.00016773,2]
[402942816,1769002237626,-500.0,0.00016773,2]
[402942817,1769002237635,-512.65188463,0.00016773,2]
[402942818,1769002237644,-500.0,0.00016773,2]
[402942819,1769002237653,-500.0,0.00016773,2]
[402942820,1769002237663,-500.0,0.00016773,2]
[402942821,1769002237673,-166.15547505,0.00016773,2]
[402942822,1769002237682,-500.54717654,0.00016773,2]
[402942823,1769002237692,-162.82594348,0.00016773,2]
[402942824,1769002237701,-500.24354149,0.00016773,2]
[402942825,1769002237710,-169.41492416,0.00016773,2]
[402942826,1769002237719,-217.33264691,0.00016773,2]
[402942827,1769002237729,-1144.90104016,0.00016773,2]
[402942828,1769002237738,-293.58687342,0.00016776,2]
[402942829,1769002237747,-500.0,0.00016832,2]
[402942830,1769002237757,-16309.33314205,0.00016833,2]
[402942831,1769002237766,-500.0,0.00016843,2]
[402942832,1769002237775,-151.0,0.00016886,2]
[402942833,1769002237784,-151.0,0.00016888,2]
[402942834,1769002237793,-151.0,0.0001689,2]
[402942835,1769002237802,-387.0,0.00016942,2]
[402942836,1769002237811,-1173.0,0.00016956,2]
[402942837,1769002237820,-166.66,0.00016968,2]
[402942838,1769002237830,-703.0,0.00016976,2]
[402942839,1769002237839,-754.0,0.0001699,2]
[402942840,1769002237849,-250.0,0.00017,2]
[402942841,1769002237858,-637.82,0.00017018,2]
[402942842,1769002237867,-735.0,0.00017024,2]
[402942843,1769002237876,-1196.0,0.00017043,2]
[402942844,1769002237885,-1613.0,0.00017057,2]
[402942845,1769002237894,-1037.0,0.00017077,2]
[402942846,1769002237903,-1819.0,0.00017091,2]
[402942847,1769002237912,-500.0,0.00017117,2]
[402942848,1769002237921,-500.0,0.00017125,2]
[402942849,1769002237930,-853.0,0.00017159,2]
[402942850,1769002237939,-1436.0,0.00017193,2]
[402942851,1769002237948,-1400.0,0.000172,2]
[402942852,1769002237957,-210.78004,0.000172,2]
[402942853,1769002237966,-8777.73,0.0001721,2]
[402942854,1769002237976,-366.77170359,0.00017277,2]
[402942855,1769002237985,-637.82,0.00017292,2]
[402942856,1769002237994,-675.0,0.00017303,2]
[402942857,1769002238004,-1000.0,0.00017321,2]
[402942858,1769002238013,-502.32372239,0.00017321,2]
[402942859,1769002238022,-1000.0,0.00017321,2]
[402942860,1769002238032,-1000.0,0.00017321,2]
[402942861,1769002238041,-1000.0,0.00017321,2]
[402942862,1769002238051,-1000.0,0.00017321,2]
[402942863,1769002238061,-805.82815613,0.00017321,2]
[402942864,1769002238071,-675.0,0.00017366,2]
[402942865,1769002238080,-675.0,0.00017368,2]
[402942866,1769002238090,-309.42998015,0.00017391,2]
[402942867,1769002238099,-6021.51618934,0.000174,2]
[402942868,1769002238109,-6021.51618934,0.00017456,2]
[402942869,1769002238118,-675.0,0.00017475,2]
[402942870,1769002238127,-675.0,0.00017496,2]
[402942871,1769002238137,-23266.27927483,0.000175,2]
[402942872,1769002238147,-1778.26926384,0.000175,3]
[402942873,1769002238156,-6021.51618934,0.00017511,2]
[402942874,1769002238165,-151.0,0.00017537,2]
[402942875,1769002238175,-303.07673906,0.00017537,2]
[402942876,1769002238184,-637.82,0.00017566,2]
[402942877,1769002238193,-6021.51618934,0.00017567,2]
[402942878,1769002238203,-771.62,0.00017596,2]
[402942879,1769002238212,-6021.51618934,0.00017622,2]
[402942880,1769002238221,-675.0,0.00017671,2]
[402942881,1769002238230,-2472.72,0.00017671,2]
[402942882,1769002238239,-6021.51618934,0.00017678,2]
[402942883,1769002238248,-319.13,0.00017679,2]
[402942884,1769002238263,-30535.1,0.00017679,2]
[402942885,1769002238272,-319.13,0.00017726,2]
[402942886,1769002238282,-6021.51618934,0.00017733,2]
[402942887,1769002238291,-319.13,0.00017772,2]
[402942888,1769002238300,-6021.51618934,0.00017789,2]
[402942889,1769002238309,-3130.66662493,0.00017812,2]
[402942890,1769002238319,-319.13,0.00017819,2]
[402942891,1769002238328,-1803.51,0.00017821,2]
[402942892,1769002238337,-3130.66662488,0.00017825,2]
[402942893,1769002238346,-212.276,0.0001783,2]
[402942894,1769002238355,-3130.66662488,0.00017837,2]
[402942895,1769002238364,-637.86,0.0001784,2]
[402942896,1769002238373,-6021.51618934,0.00017844,2]
[402942897,1769002238383,-151.0,0.00017848,2]
[402942898,1769002238392,-3130.66662488,0.0001785,2]
[402942899,1769002238402,-3130.66662488,0.00017862,2]
[402942900,1769002238411,-319.13,0.00017865,2]
[402942901,1769002238424,-1500.0,0.00017868,2]
[402942902,1769002238433,-1500.0,0.00017868,2]
[402942903,1769002238442,-858.08598744,0.00017868,2]
[402942904,1769002238451,-489.94559639,0.00017868,2]
[402942905,1769002238460,-1001.96234831,0.00017868,2]
[402942906,1769002238469,-6021.51618934,0.000179,2]
[402942907,1769002238478,-14068.34996372,0.000179,2]
[402942908,1769002238488,-500.00010812,0.000179,2]
[402942909,1769002238497,-670.75392771,0.00017905,2]
[402942910,1769002238695,-155338.6143133,0.00017905,2]
[402942911,1769002238706,-319.13,0.00017912,2]
[402942912,1769002238715,-675.0,0.00017943,2]
[402942913,1769002238725,-319.13,0.00017958,2]
[402942914,1769002238734,-1000.0,0.0001797,2]
[402942915,1769002238744,-694.631145,0.0001797,2]
[402942916,1769002238754,-1321.57411122,0.0001797,2]
[402942917,1769002238763,-30553.0,0.00017973,2]
[402942918,1769002238773,-15055.0,0.00017973,2]
[402942919,1769002238783,-500.79549494,0.00017973,2]
[402942920,1769002238792,-159.96427776,0.00017973,2]
[402942921,1769002238801,-257.99612183,0.00017973,2]
[402942922,1769002238811,-500.0,0.00017973,2]
[402942923,1769002238821,-500.0,0.00017973,2]
[402942924,1769002238830,-500.0,0.00017973,2]
[402942925,1769002238840,-166.57282596,0.00017973,2]
[402942926,1769002238850,-500.58756359,0.00017973,2]
[402942927,1769002238860,-500.44081703,0.00017973,2]
[402942928,1769002238870,-500.47917453,0.00017973,2]
[402942929,1769002238880,-501.80045259,0.00017973,2]
[402942930,1769002238890,-500.36019469,0.00017973,2]
[402942931,1769002238900,-501.05525398,0.00017973,2]
[402942932,1769002238909,-500.0,0.00017973,2]
[402942933,1769002238919,-500.0,0.00017973,2]
[402942934,1769002238928,-500.0,0.00017973,2]
[402942935,1769002238938,-500.50663341,0.00017973,2]
[402942936,1769002238947,-500.0,0.00017973,2]
[402942937,1769002238958,-500.0,0.00017973,2]
[402942938,1769002238967,-500.0,0.00017973,2]
[402942939,1769002238977,-500.0,0.00017973,2]
[402942940,1769002238987,-500.0,0.00017973,2]
[402942941,1769002238997,-500.0,0.00017973,2]
[402942942,1769002239006,-163.65383635,0.00017973,2]
[402942943,1769002239015,-502.57997666,0.00017973,2]
[402942944,1769002239024,-500.0,0.00017973,2]
[402942945,1769002239033,-500.67790697,0.00017973,2]
[402942946,1769002239042,-707.94215069,0.0001799,2]
[402942947,1769002239052,-707.94215069,0.0001799,2]
[402942948,1769002239062,-707.94215069,0.0001799,2]
[402942949,1769002239071,-675.0,0.00017993,2]
[402942950,1769002239080,-151.0,0.00017997,2]
[402942951,1769002239090,-1086.0844155,0.00017999,5]
[402942952,1769002239102,-1037.30788483,0.00017999,5]
[402942953,1769002239111,-1037.30788483,0.00017999,5]
[402942954,1769002239120,-1037.30788483,0.00017999,5]
[402942955,1769002239129,-1037.30788483,0.00017999,5]
[402942956,1769002239138,-300.0,0.00017999,2]
[402942957,1769002239147,-150.0,0.00017999,2]
[402942958,1769002239156,-150.0,0.00017999,2]
[402942959,1769002239166,-150.0,0.00017999,2]
[402942960,1769002239175,-292.43276187,0.00017999,2]
[402942961,1769002239184,-385.23770556,0.00017999,2]
[402942962,1769002239193,-2408708.18508643,0.00018,2]
[402942963,1769002239240,-615.21547425,0.00018,2]
[402942968,1769002239815,-458.87313864,0.00018,2]
[402942969,1769002239900,-0.83030072,0.00018,2]
[402942970,1769002239911,-329.00491005,0.00018,2]
[402942972,1769002240524,-1.7e-07,0.00018,2]
[402942973,1769002240536,-6426.99855979,0.00018,2]
[402942993,1769002242979,-1057.42550622,0.00017875,2]
[402942995,1769002242991,-1001.403706,0.00017875,2]
[402942996,1769002243002,-1071.83741266,0.00017875,2]
[402942997,1769002243012,-527265.20869525,0.00018,2]
[402943000,1769002246211,-1890.52788908,0.00017887,2]
[402943001,1769002246222,-1159.95,0.00017887,2]
[402943002,1769002246234,-80.1887358,0.00017887,2]
[402943003,1769002246243,-639.966965,0.00018,2]
[402943004,1769002262642,500.0,0.00016369,2]
[402943005,1769002289916,8833.37,0.0001637,2]
[402943006,1769002289942,10000.01,0.0001637,2]
[402943007,1769002289967,10000.01,0.0001637,2]
[402943008,1769002289992,10000.01,0.0001637,2]
[402943009,1769002290018,10000.01,0.0001637,2]
[402943010,1769002290043,10000.01,0.0001637,2]
[402943011,1769002290067,10000.01,0.0001637,2]
[402943012,1769002290091,10000.01,0.0001637,2]
[402943013,1769002290115,10000.01,0.0001637,2]
[402943014,1769002290141,10000.01,0.0001637,2]
[402943015,1769002290166,901166.54,0.0001637,2]
[402943016,1769002365356,228.0,0.00016101,2]
[402943017,1769002366073,228.0,0.00016341,2]
[402943018,1769002369827,170.49,0.00013601,2]
[402943019,1769002684722,253.9,0.000226,120]
[402943022,1769002807612,500.0,0.000226,120]
[402943023,1769002808923,500.0,0.000226,120]
[402943024,1769002810794,500.0,0.000226,120]
[402943025,1769002812073,500.0,0.000226,120]
[402943026,1769002813491,500.0,0.000226,120]
[402943027,1769002814910,500.0,0.000226,120]
[402943029,1769002986494,-840.03570866,0.00016473,2]
[402943031,1769002989015,-201.1,0.00016473,2]
[402943032,1769002990588,-562.60926168,0.00016473,2]
[402943033,1769003059034,3531.922698,0.00016393,2]
[402943034,1769003210216,4331.12,0.00013756,2]
[402943038,1769003327731,190.55,0.000226,120]
[402943039,1769003414625,352.72490511,0.000164,2]
[402943047,1769003431714,-250.0,0.00016466,2]
[402943048,1769003431726,-503.54269787,0.00016479,2]
[402943049,1769003431739,-1348.87730213,0.00016479,2]
[402943050,1769003431748,-127.1537665,0.000165,2]
[402943051,1769003432120,-695.967321,0.000165,2]
[402943052,1769003432131,-2172.22957295,0.000165,2]
[402943053,1769003432141,-3832.07044929,0.000165,2]
[402943054,1769003432151,-5732.54821105,0.000165,2]
[402943055,1769003432161,-7756.3332,0.000165,2]
[402943056,1769003432171,-1803.51,0.00016569,2]
[402943057,1769003432180,-1468.09,0.00016598,2]
[402943058,1769003432190,-150.0041305,0.00016627,2]
[402943059,1769003432200,-200.0,0.0001664,2]
[402943060,1769003432208,-300.0,0.00016648,2]
[402943061,1769003432218,-1200.0,0.00016648,2]
[402943062,1769003432227,-767.84,0.00016649,2]
[402943063,1769003432236,-200.0,0.00016649,2]
[402943064,1769003432245,-200.0,0.00016649,2]
[402943065,1769003432255,-500.0,0.00016649,2]
[402943066,1769003432264,-500.0,0.00016649,2]
[402943067,1769003432273,-500.0,0.00016649,2]
[402943068,1769003432283,-500.0,0.00016649,2]
[402943069,1769003432291,-500.0,0.00016649,2]
[402943070,1769003432301,-500.0,0.00016649,2]
[402943071,1769003432310,-500.0,0.00016649,2]
[402943072,1769003432319,-500.0,0.00016649,2]
[402943073,1769003432329,-500.0,0.00016649,2]
[402943074,1769003432338,-500.0,0.00016649,2]
[402943075,1769003432348,-500.0,0.00016649,2]
[402943076,1769003432357,-500.0,0.00016649,2]
[402943077,1769003432366,-500.0,0.00016649,2]
[402943078,1769003432375,-151.0,0.00016649,2]
[402943079,1769003432385,-500.0,0.00016649,2]
[402943080,1769003432394,-500.0,0.00016649,2]
[402943081,1769003432404,-500.0,0.00016649,2]
[402943082,1769003432413,-500.0,0.00016649,2]
[402943083,1769003432422,-500.0,0.00016649,2]
[402943084,1769003432431,-500.0,0.00016649,2]
[402943085,1769003432440,-500.0,0.00016649,2]
[402943086,1769003432448,-500.0,0.00016649,2]
[402943087,1769003432457,-500.0,0.00016649,2]
[402943088,1769003432466,-460.62223038,0.00016649,2]
[402943089,1769003432475,-200.0,0.00016649,2]
[402943090,1769003432484,-500.0,0.00016649,2]
[402943091,1769003432493,-151.0,0.00016649,2]
[402943092,1769003432501,-151.0,0.00016649,2]
[402943093,1769003432510,-151.0,0.00016649,2]
[402943094,1769003432519,-151.0,0.00016649,2]
[402943095,1769003432528,-151.0,0.00016649,2]
[402943096,1769003432536,-151.0,0.00016649,2]
[402943097,1769003432545,-151.0,0.00016649,2]
[402943098,1769003432554,-151.0,0.00016649,2]
[402943099,1769003432563,-151.0,0.00016649,2]
[402943100,1769003432571,-151.0,0.00016649,2]
[402943101,1769003432580,-151.0,0.00016649,2]
[402943102,1769003432589,-151.0,0.00016649,2]
[402943103,1769003432600,-151.0,0.00016649,2]
[402943104,1769003432609,-500.0,0.00016659,2]
[402943105,1769003432618,-4605.53,0.00016659,2]
[402943106,1769003432627,-1820.98,0.00016716,2]
[402943107,1769003432637,-205.71,0.00016731,2]
[402943108,1769003432646,-835.95,0.00016759,2]
[402943109,1769003432655,-352.7249051,0.00016844,2]
[402943110,1769003432664,-767.84,0.00016923,2]
[402943111,1769003432674,-500.0,0.00016933,2]
[402943112,1769003432683,-250.0,0.00017,2]
[402943113,1769003432692,-3240.0,0.00017021,2]
[402943114,1769003432701,-500.0,0.00017041,2]
[402943115,1769003432710,-329.69,0.00017049,2]
[402943116,1769003432719,-1020.0,0.00017082,2]
[402943117,1769003432732,-151.0,0.00017084,2]
[402943118,1769003432741,-151.0,0.00017085,2]
[402943119,1769003432750,-1052.0,0.00017116,2]
[402943120,1769003432759,-554.0,0.0001715,2]
[402943121,1769003432770,-500.0,0.00017151,2]
[402943122,1769003432779,-459.0,0.00017184,2]
[402943123,1769003432788,-767.84,0.00017197,2]
[402943124,1769003432799,-200.0,0.00017197,2]
[402943125,1769003432809,-200.0,0.00017197,2]
[402943126,1769003432819,-500.0,0.00017197,2]
[402943127,1769003432828,-1853.0,0.000172,2]
[402943128,1769003432837,-210.78004,0.000172,2]
[402943129,1769003432847,-309.42998015,0.00017207,2]
[402943130,1769003432856,-1670.0,0.00017218,2]
[402943131,1769003432866,-1659.0,0.00017235,2]
[402943132,1769003432876,-460.0,0.00017269,2]
[402943133,1769003432885,-502.0,0.00017288,2]
[402943134,1769003432895,-352.7249051,0.00017288,2]
[402943135,1769003432904,-2263.0,0.00017301,2]
[402943136,1769003432913,-1521.0,0.00017303,2]
[402943137,1769003432923,-1028.0,0.00017338,2]
[402943138,1769003432932,-1276.0,0.00017372,2]
[402943139,1769003432941,-2263.0,0.00017389,2]
[402943140,1769003432950,-328.3563,0.00017438,2]
[402943141,1769003432959,-315.03347859,0.00017465,2]
[402943142,1769003432969,-767.84,0.00017471,2]
[402943143,1769003432978,-1112.7383542,0.0001748,2]
[402943144,1769003432988,-174.61919141,0.00017537,2]
[402943145,1769003432997,-151.0,0.00017537,2]
[402943146,1769003433006,-533.88981491,0.00017537,2]
[402943147,1769003433015,-578.20924308,0.00017537,2]
[402943149,1769003433025,-250.0,0.00017537,2]
[402943151,1769003433034,-250.0,0.00017537,2]
[402943153,1769003433044,-250.0,0.00017537,2]
[402943154,1769003433053,-250.0,0.00017537,2]
[402943155,1769003433062,-250.0,0.00017537,2]
[402943156,1769003433072,-250.0,0.00017537,2]